bitfinex/quotes_SOLUSD_20241117
["timestamp","ask_amount","ask_price","bid_price","bid_amount"]
[1731844850717,0.1,235.46,235.38,10.6211]
[1731844850918,0.1,235.43,235.38,10.6211]
[1731844851516,0.1,235.43,235.32,10.6238]
[1731844851716,20.0,235.53,235.32,10.6238]
[1731844851717,0.1,235.45,235.32,10.6238]
[1731844851916,0.1,235.44,235.33,0.25098]
[1731844852144,0.1,235.42,235.33,0.25098]
[1731844852346,0.1,235.42,235.32,10.6238]
[1731844852347,0.1,235.35,235.32,10.6238]
[1731844852720,0.1,235.37,235.32,10.6238]
[1731844852923,0.1,235.35,235.32,10.6238]
[1731844853142,0.1,235.37,235.32,10.6238]
[1731844853547,0.1,235.37,235.28,21.2505]
[1731844853925,0.1,235.37,235.29,0.12549]
[1731844854241,0.1,235.33,235.26,14.8771]
[1731844854542,8.2509,235.42,235.26,14.8771]
[1731844854724,8.1509,235.42,235.26,14.8771]
[1731844854923,0.1,235.4,235.26,14.8771]
[1731844855132,0.1,235.35,235.26,14.8771]
[1731844855318,0.1,235.34,235.26,14.8771]
[1731844855527,0.1,235.34,235.26,10.6265]
[1731844856326,0.1,235.32,235.26,10.6265]
[1731844857628,8.1509,235.42,235.26,10.6265]
[1731844857629,0.1,235.36,235.26,10.6265]
[1731844857836,0.1,235.39,235.27,23.776884]
[1731844858359,0.1,235.39,235.28,0.25098]
[1731844858720,0.1,235.41,235.28,0.25098]
[1731844859850,0.1,235.38,235.3,0.25098]
[1731844860038,0.1,235.41,235.3,24.027864]
[1731844860735,0.1,235.37,235.3,24.027864]
[1731844861259,0.1,235.37,235.29,36.1254]
[1731844861442,3.3984,235.41,235.29,36.1254]
[1731844861443,0.1,235.34,235.29,36.1254]
[1731844861631,0.1,235.38,235.29,36.1254]
[1731844861953,0.1,235.38,235.29,21.2503]
[1731844862448,0.1,235.38,235.3,24.027864]
[1731844862642,0.1,235.34,235.29,21.2503]
[1731844863343,8.2509,235.42,235.29,21.2503]
[1731844863743,0.1,235.4,235.29,21.2503]
[1731844863942,0.1,235.4,235.3,24.027864]
[1731844864530,0.1,235.44,235.3,24.027864]
[1731844864833,0.1,235.39,235.3,24.027864]
[1731844865031,0.1,235.36,235.3,0.12549]
[1731844865237,0.1,235.39,235.3,0.12549]
[1731844865440,0.2,235.39,235.3,0.12549]
[1731844865749,0.1,235.34,235.3,0.12549]
[1731844865955,0.1,235.34,235.31,4.2497]
[1731844866132,0.1,235.36,235.31,4.2497]
[1731844866449,0.1,235.36,235.3,14.8743]
[1731844866655,0.1,235.28,235.25,14.8567]
[1731844866947,0.1,235.26,235.16,21.2616]
[1731844867131,0.1,235.25,235.16,21.2616]
[1731844867327,0.1,235.2,235.19,10.6293]
[1731844867552,0.1,235.22,235.19,10.6293]
[1731844867731,0.1,235.2,235.13,10.6322]
[1731844868149,0.1,235.21,235.13,10.6322]
[1731844868449,0.1,235.2,235.13,10.6322]
[1731844868829,0.1,235.15,235.09,4.2536]
[1731844869035,0.1,235.14,235.09,4.2536]
[1731844869249,0.1,235.12,235.09,4.2536]
[1731844869454,0.1,234.99,234.93,25.81903414]
[1731844869639,0.1,234.98,234.93,0.0611088]
[1731844869947,0.1,235.1,234.93,0.0611088]
[1731844869948,0.1,234.97,234.93,0.0611088]
[1731844870153,0.1,234.97,234.93,4.3175088]
[1731844871248,0.1,234.94,234.93,0.0611088]
[1731844871635,3.4036,235.05,234.93,4.3176088]
[1731844871636,0.2,235.0,234.93,4.3176088]
[1731844871836,0.1,235.0,234.93,4.3176088]
[1731844872758,0.1,234.98,234.93,4.3176088]
[1731844872941,0.1,235.0,234.93,4.3176088]
[1731844873657,0.1,235.0,234.93,14.9590088]
[1731844874061,0.1,235.0,234.94,0.12549]
[1731844874436,0.1,235.02,234.94,0.25098]
[1731844874650,0.1,235.02,234.95,4.2562]
[1731844874848,0.09253339,234.96,234.93,10.7025088]
[1731844875055,0.09253339,234.96,234.93,0.0611088]
[1731844875056,0.1,234.94,234.93,0.0611088]
[1731844875541,0.1,234.92,234.89,4.2571]
[1731844875750,0.1,234.92,234.89,4.3422162]
[1731844875935,0.1,234.95,234.89,4.3422162]
[1731844876156,0.1,234.94,234.89,4.3422162]
[1731844876654,0.09253339,234.96,234.89,14.9854162]
[1731844876850,0.09253339,234.96,234.9,0.25098]
[1731844877745,0.09253339,234.96,234.91,14.8992]
[1731844878547,0.1,234.95,234.91,14.8992]
[1731844878749,0.09253339,234.96,234.91,14.8992]
[1731844878946,0.19253339,234.96,234.91,14.8992]
[1731844879142,0.08684842,234.97,234.92,24.027864]
[1731844879342,0.06966588,234.98,234.92,24.027864]
[1731844879746,0.06966588,234.98,234.91,21.2847]
[1731844880045,0.06966588,234.98,234.94,0.25098]
[1731844880941,0.06966588,234.98,234.95,14.8967]
[1731844881152,0.06966588,234.98,234.96,0.25098]
[1731844881768,0.06966588,234.98,234.95,14.8967]
[1731844881973,0.16966588,234.98,234.95,14.8967]
[1731844882469,0.16966588,234.98,234.75,6.61709239]
[1731844882470,0.1,234.87,234.75,6.61709239]
[1731844882643,0.1,234.84,234.72,4.2603]
[1731844882845,0.1,234.82,234.72,4.2603]
[1731844883043,0.1,234.79,234.72,14.9112]
[1731844883257,0.1,234.79,234.72,10.6509]
[1731844883258,0.1,234.73,234.72,10.6509]
[1731844883473,0.1,234.82,234.72,10.6509]
[1731844883763,0.1,234.84,234.72,14.9112]
[1731844884062,0.1,234.82,234.72,14.9112]
[1731844885052,0.2,234.82,234.72,14.9112]
[1731844885259,0.1,234.82,234.72,14.9112]
[1731844885459,0.1,234.82,234.75,0.12549]
[1731844886140,0.1,234.84,234.75,24.027864]
[1731844886341,0.1,234.86,234.75,24.027864]
[1731844886544,0.1,234.83,234.75,0.25098]
[1731844886763,0.1,234.82,234.75,0.25098]
[1731844888250,0.1,234.83,234.75,0.25098]
[1731844888473,0.1,234.86,234.7,0.4652843]
[1731844888474,0.1,234.85,234.7,4.6952843]
[1731844888655,0.1,234.78,234.71,19.1419]
[1731844888855,0.1,234.77,234.71,19.1419]
[1731844889057,0.1,234.74,234.71,19.1419]
[1731844889254,0.1,234.75,234.71,19.1419]
[1731844889567,0.2,234.75,234.71,19.1419]
[1731844889767,0.1,234.75,234.71,19.1419]
[1731844889953,0.1,234.74,234.71,19.1419]
[1731844890150,0.1,234.77,234.71,19.1419]
[1731844890357,0.1,234.76,234.71,19.1419]
[1731844890652,0.1,234.78,234.72,0.12549]
[1731844890849,0.1,234.79,234.72,0.12549]
[1731844891349,0.1,234.77,234.72,0.12549]
[1731844891673,0.1,234.77,234.71,19.1419]
[1731844891674,0.2,234.77,234.71,19.1419]
[1731844892055,0.1,234.77,234.71,19.1419]
[1731844892363,0.1,234.75,234.71,14.8814]
[1731844892554,0.16927,234.73,234.72,4.23]
[1731844893668,0.1,234.74,234.7,8.9559843]
[1731844893874,0.1,234.72,234.7,19.6077843]
[1731844894174,0.1,234.73,234.7,19.6077843]
[1731844894369,0.06927,234.75,234.7,19.6077843]
[1731844894547,0.1,234.74,234.7,19.6077843]
[1731844894951,0.09167041,234.71,234.7,19.6077843]
[1731844895451,0.16094041,234.71,234.7,19.6077843]
[1731844895655,0.09167041,234.71,234.7,19.6077843]
[1731844896070,0.26094041,234.71,234.7,0.4652843]
[1731844896274,0.09167041,234.71,234.7,0.4652843]
[1731844896457,0.26094041,234.71,234.7,0.4652843]
[1731844897476,0.09167041,234.71,234.7,0.4652843]
[1731844898457,0.09167041,234.71,234.7,0.5907743]
[1731844898657,0.09265757,234.72,234.71,4.2605]
[1731844900059,0.16192757,234.72,234.71,4.2605]
[1731844902176,0.0121293,234.73,234.71,4.2605]
[1731844902382,0.01323583,234.74,234.71,14.9119]
[1731844903452,0.06927,234.73,234.71,14.9119]
[1731844905972,0.01323583,234.74,234.71,14.9119]
[1731844906175,0.11323583,234.74,234.71,14.9119]
[1731844906372,0.06927,234.73,234.71,14.9119]
[1731844907475,0.16927,234.73,234.71,14.9119]
[1731844908067,0.01323583,234.74,234.71,14.9119]
[1731844909863,0.01323583,234.74,234.72,0.25098]
[1731844910064,0.01323583,234.74,234.72,20.25098]
[1731844910265,0.07733854,234.75,234.72,20.25098]
[1731844910479,0.02525947,234.77,234.76,20.25098]
[1731844910675,0.02525947,234.77,234.76,44.027864]
[1731844910862,0.1,234.9,234.77,23.776884]
[1731844911067,0.1,234.92,234.81,23.776884]
[1731844911272,0.1,234.92,234.75,70.0]
[1731844911273,0.1,234.96,234.86,20.12549]
[1731844911578,0.1,234.96,234.86,20.25098]
[1731844911772,0.1,234.96,234.88,20.25098]
[1731844911964,8.3941,235.08,234.88,20.25098]
[1731844911965,0.1,234.98,234.9,0.25098]
[1731844912292,0.1,234.98,234.9,20.25098]
[1731844912585,0.06927,235.02,234.93,23.776884]
[1731844912791,8.3941,235.08,234.87,8.3941]
[1731844912792,0.06927,235.09,234.96,45.75098]
[1731844913089,0.1,235.08,234.99,23.776884]
[1731844913259,0.1,235.08,234.96,25.5]
[1731844913260,0.06927,235.09,235.02,0.25098]
[1731844913464,0.1,235.08,235.02,0.25098]
[1731844913675,0.06927,235.09,235.03,14.8916]
[1731844914074,0.1,235.1,235.03,14.8916]
[1731844914967,0.09075919,235.04,235.03,14.8916]
[1731844915582,0.09075919,235.04,235.03,58.919464]
[1731844915997,0.09075919,235.04,235.03,84.419464]
[1731844916171,0.07739419,235.07,235.03,34.8916]
[1731844916364,0.07739419,235.07,235.03,14.8916]
[1731844916787,0.1,235.04,235.03,10.6369]
[1731844917585,0.1,235.04,234.93,10.6414]
[1731844917889,0.16927,235.01,234.93,31.9243]
[1731844918267,0.1,235.03,234.93,31.9243]
[1731844918478,0.16927,235.04,234.93,31.9243]
[1731844918688,0.06927,235.04,234.93,31.9243]
[1731844918988,0.16927,235.04,234.93,31.9243]
[1731844919169,0.16927,235.04,234.94,20.0]
[1731844919567,0.06927,235.02,234.96,36.1763]
[1731844919771,0.07739419,235.07,234.96,36.1763]
[1731844919772,0.16927,234.97,234.96,10.6401]
[1731844920077,0.1,234.92,234.9,10.6424]
[1731844920382,0.16927,234.92,234.9,10.6424]
[1731844920768,0.16927,234.92,234.91,4.2567]
[1731844921077,0.16927,234.92,234.9,10.6424]
[1731844921474,0.1,234.92,234.9,10.6424]
[1731844921668,0.16927,234.92,234.9,10.6424]
[1731844921876,0.06927,234.92,234.9,10.6424]
[1731844922170,0.06927,234.99,234.9,10.6424]
[1731844922376,0.06927,235.01,234.9,10.6424]
[1731844922790,0.06927,234.99,234.91,24.027864]
[1731844922977,0.06927,234.99,234.92,20.0]
[1731844923182,0.16927,235.01,234.93,0.25098]
[1731844923690,0.1,234.99,234.93,0.25098]
[1731844923893,0.16927,235.03,234.94,20.0]
[1731844924198,0.16927,235.03,234.95,0.25098]
[1731844924893,0.06927,234.94,234.92,14.8986]
[1731844925103,0.1,234.93,234.81,40.4056]
[1731844925399,0.06927,234.92,234.81,43.8091]
[1731844925692,0.1,234.93,234.81,43.8091]
[1731844925906,0.16927,234.99,234.83,25.5]
[1731844926194,0.06927,234.95,234.83,25.5]
[1731844926371,0.1,234.93,234.83,25.5]
[1731844926576,0.06927,234.95,234.83,25.5]
[1731844926886,0.06927,234.97,234.83,45.5]
[1731844927268,0.06927,234.97,234.85,20.0]
[1731844927473,0.06927,234.97,234.88,24.027864]
[1731844927689,0.1,234.98,234.9,0.25098]
[1731844927895,0.1,234.98,234.9,24.027864]
[1731844928071,0.06927,234.99,234.93,20.0]
[1731844928271,0.06927,235.01,234.93,20.0]
[1731844928476,0.1,234.99,234.94,0.25098]
[1731844928896,0.16927,234.99,234.94,0.25098]
[1731844929279,0.06927,234.98,234.95,10.6405]
[1731844929487,0.1,234.96,234.95,10.6405]
[1731844929994,0.1,234.98,234.95,10.6405]
[1731844930194,0.16927,234.98,234.95,10.6405]
[1731844930571,0.07739419,235.07,234.96,24.027864]
[1731844930572,0.06927,235.04,234.96,24.027864]
[1731844930771,0.16927,235.04,234.96,24.027864]
[1731844930994,0.1,235.02,234.96,24.027864]
[1731844931195,0.16927,235.04,234.97,20.0]
[1731844931376,0.16927,235.06,235.0,0.25098]
[1731844931898,0.01130204,235.09,235.02,20.25098]
[1731844932200,0.01130204,235.09,235.04,45.75098]
[1731844932408,0.01130204,235.09,235.06,20.25098]
[1731844932785,0.01130204,235.09,235.08,20.25098]
[1731844932989,0.01130204,235.09,235.08,44.027864]
[1731844933190,0.01130204,235.09,235.08,99.489164]
[1731844933485,0.01130204,235.09,235.08,103.742964]
[1731844934109,0.07893089,235.12,235.11,25.5]
[1731844934402,0.07893089,235.12,235.11,0.25098]
[1731844934779,0.07893089,235.12,235.1,0.12549]
[1731844935380,0.06927,235.07,235.0,4.2553]
[1731844935691,0.06927,235.07,235.0,14.8935]
[1731844936300,0.06927,235.04,235.0,14.8935]
[1731844936501,0.16927,235.06,235.0,14.8935]
[1731844936809,8.6842,235.16,235.0,14.8935]
[1731844936810,0.1,235.08,235.0,36.17]
[1731844936991,8.6842,235.16,235.0,36.17]
[1731844936992,0.06927,235.05,235.0,14.8935]
[1731844937180,0.16927,235.05,235.0,14.8935]
[1731844937385,0.1,235.01,234.99,21.2775]
[1731844938108,0.06927,235.03,234.99,21.2775]
[1731844938407,0.1,235.01,234.99,21.2775]
[1731844938708,0.06927,235.0,234.94,14.8974]
[1731844938909,0.1,234.95,234.94,14.8974]
[1731844939202,0.16927,234.95,234.94,14.8974]
[1731844939409,0.16927,234.95,234.85,14.903]
[1731844939716,0.1,234.92,234.85,14.903]
[1731844939885,0.1,234.92,234.89,21.2856]
[1731844940083,0.1,234.92,234.85,14.903]
[1731844940298,0.16927,234.95,234.85,14.903]
[1731844940497,0.1,234.94,234.85,14.903]
[1731844940696,0.1,234.92,234.85,14.903]
[1731844940893,0.1,235.06,234.85,14.903]
[1731844940894,0.1,234.95,234.85,14.903]
[1731844941184,0.16927,234.92,234.85,36.1931]
[1731844941383,0.1,234.86,234.85,10.645]
[1731844941588,0.1,234.81,234.79,10.6474]
[1731844941790,0.06927,234.78,234.76,4.2596]
[1731844942098,0.1,234.77,234.76,4.2596]
[1731844942605,3.5059,234.89,234.7,0.4652843]
[1731844942606,0.16927,234.75,234.74,14.9099]
[1731844942813,0.16927,234.75,234.74,10.65]
[1731844943184,0.16927,234.72,234.71,4.2605]
[1731844943405,0.1,234.72,234.71,4.2605]
[1731844943607,0.16927,234.72,234.71,4.2605]
[1731844944318,0.16927,234.72,234.7,0.4652843]
[1731844945714,0.26927,234.72,234.7,0.4652843]
[1731844945917,0.26927,234.72,234.53,21.3189]
[1731844945918,0.06927,234.56,234.54,4.2636]
[1731844946091,0.16927,234.56,234.54,14.9225]
[1731844946290,0.2,234.69,234.48,10.6618]
[1731844946291,0.1,234.49,234.48,10.6618]
[1731844946609,0.16927,234.49,234.48,10.6618]
[1731844947105,0.16927,234.49,234.48,14.9265]
[1731844947318,8.6842,234.6,234.45,4.2651]
[1731844947319,0.16927,234.47,234.45,4.2651]
[1731844948116,0.06927,234.48,234.47,4.2649]
[1731844950103,0.1,234.47,234.41,10.6646]
[1731844951006,0.1,234.47,234.37,4.2665]
[1731844951721,3.58117,234.48,234.34,10.6678]
[1731844951722,0.16927,234.35,234.34,10.6678]
[1731844951905,0.06927,234.3,234.29,0.1]
[1731844953711,0.06927,234.35,234.29,0.1]
[1731844954032,0.1,234.36,234.29,0.1]
[1731844954033,0.16927,234.36,234.29,0.1]
[1731844954330,0.1,234.36,234.3,14.938]
[1731844954528,0.06927,234.36,234.31,0.12549]
[1731844954831,0.06927,234.35,234.3,14.938]
[1731844955027,0.06927,234.36,234.31,0.12549]
[1731844955326,0.1,234.36,234.31,0.25098]
[1731844955532,0.16927,234.3,234.29,0.1]
[1731844957629,0.06927,234.31,234.29,4.3682]
[1731844957925,0.06927,234.31,234.29,15.0387]
[1731844958124,0.1,234.3,234.29,10.7705]
[1731844958328,0.1,234.3,234.29,0.1]
[1731844959539,3.5144,234.3,234.29,0.1]
[1731844959712,3.6144,234.3,234.29,0.1]
[1731844959912,27.391284,234.3,234.29,0.1]
[1731844960219,3.6144,234.3,234.29,0.1]
[1731844960404,3.5144,234.3,234.29,0.1]
[1731844960605,0.1,234.3,234.29,0.1]
[1731844961131,0.1,234.3,234.29,4.368]
[1731844961334,0.1,234.32,234.29,15.0385]
[1731844961507,0.1,234.3,234.29,10.7705]
[1731844962631,0.1,234.3,234.29,0.1]
[1731844964028,3.5144,234.3,234.29,0.1]
[1731844964214,46.891284,234.3,234.29,0.1]
[1731844964420,46.991284,234.3,234.29,0.1]
[1731844965117,0.16927,234.23,234.22,0.4652843]
[1731844965317,0.26927,234.23,234.22,0.4652843]
[1731844965514,24.046154,234.23,234.22,0.4652843]
[1731844965722,0.26927,234.23,234.22,0.4652843]
[1731844966119,0.16927,234.23,234.22,0.4652843]
[1731844966320,8.5764,234.27,234.12,4.2363843]
[1731844966321,0.16927,234.13,234.12,4.2363843]
[1731844966625,0.16927,234.13,234.04,21.3632]
[1731844966828,0.06927,234.18,234.05,25.5]
[1731844967029,3.4144,234.3,234.04,21.3632]
[1731844967030,0.06927,234.16,234.04,21.3632]
[1731844967529,0.16927,234.21,234.05,25.5]
[1731844968314,0.1,234.19,234.09,25.5]
[1731844968510,0.1,234.19,234.08,24.027864]
[1731844968511,0.06927,234.18,234.12,0.12549]
[1731844968715,0.06927,234.16,234.12,0.12549]
[1731844968916,0.1,234.17,234.12,0.12549]
[1731844969221,0.06927,234.16,234.12,0.12549]
[1731844969526,0.06927,234.16,234.11,14.9501]
[1731844969727,0.16927,234.21,234.11,36.3075]
[1731844969929,0.06927,234.23,234.11,61.8075]
[1731844970125,0.16927,234.21,234.11,70.248]
[1731844970317,0.06927,234.18,234.11,70.248]
[1731844970527,0.06927,234.17,234.11,44.748]
[1731844970835,0.06927,234.15,234.11,44.748]
[1731844971215,0.16927,234.12,234.11,10.6787]
[1731844971411,0.06927,234.07,234.04,25.6359]
[1731844971616,3.416,234.19,234.04,25.6359]
[1731844971617,0.06927,234.06,234.04,25.6359]
[1731844971845,0.06927,234.09,234.04,36.3178]
[1731844972229,0.06927,234.06,234.04,36.3178]
[1731844972540,0.06927,234.07,234.04,36.3178]
[1731844974139,3.4161,234.19,234.04,36.3178]
[1731844974140,0.16927,234.05,234.04,36.3178]
[1731844974717,0.06927,234.05,234.04,36.3178]
[1731844975330,0.16927,234.05,234.04,14.9546]
[1731844975537,0.1,234.05,234.04,14.9546]
[1731844975729,0.06927,234.07,234.04,14.9546]
[1731844976041,0.16927,234.07,234.04,14.9546]
[1731844976628,0.06927,234.07,234.04,14.9546]
[1731844976826,3.416,234.19,234.04,14.9546]
[1731844977029,3.516,234.19,234.04,14.9546]
[1731844977239,3.416,234.19,234.04,14.9546]
[1731844977431,3.616,234.19,234.04,14.9546]
[1731844977738,0.1,234.17,234.04,14.9546]
[1731844977934,0.1,234.17,234.0,1.0]
[1731844977935,0.1,234.12,234.0,1.0]
[1731844978131,0.1,234.14,234.0,5.2734]
[1731844978330,23.876884,234.15,234.0,5.2734]
[1731844978542,3.4164,234.16,234.0,15.9571]
[1731844978727,3.4158,234.2,234.0,15.9571]
[1731844979126,3.4158,234.2,234.0,16.0571]
[1731844979653,8.6115,234.23,234.01,24.127864]
[1731844979817,3.4156,234.22,234.03,0.1]
[1731844980155,8.6115,234.23,234.03,0.1]
[1731844980156,8.6115,234.23,234.05,24.027864]
[1731844980325,8.6115,234.23,234.05,24.127864]
[1731844980326,12.027,234.23,234.05,24.127864]
[1731844980524,8.6115,234.23,234.05,24.127864]
[1731844980720,0.1,234.26,234.05,24.027864]
[1731844980951,3.515,234.26,234.07,0.1]
[1731844981540,0.1,234.26,234.07,0.1]
[1731844981729,21.0793,234.34,234.14,0.22549]
[1731844982051,8.6115,234.45,234.25,0.1]
[1731844982543,21.0793,234.5,234.25,0.1]
[1731844982742,21.0793,234.5,234.27,0.1]
[1731844982743,0.1,234.49,234.27,0.1]
[1731844982947,0.1,234.57,234.32,0.35098]
[1731844983147,3.4107,234.56,234.35,0.25098]
[1731844983324,3.4107,234.56,234.37,0.25098]
[1731844983529,3.4107,234.56,234.37,24.027864]
[1731844983949,0.1,234.55,234.37,24.027864]
[1731844984453,0.1,234.57,234.39,24.027864]
[1731844984657,0.1,234.58,234.39,24.027864]
[1731844984859,12.0218,234.59,234.39,49.527864]
[1731844985054,3.4094,234.64,234.4,0.1]
[1731844985355,0.1,234.63,234.42,0.1]
[1731844986036,3.4103,234.58,234.4,14.9317]
[1731844986239,0.1,234.6,234.41,23.902374]
[1731844986532,0.1,234.58,234.41,23.902374]
[1731844986733,0.1,234.59,234.41,23.902374]
[1731844986950,0.1,234.59,234.41,49.402374]
[1731844987150,3.5097,234.63,234.41,49.402374]
[1731844987359,3.5097,234.63,234.42,0.12549]
[1731844988254,0.1,234.59,234.43,14.9297]
[1731844989160,0.1,234.61,234.43,14.9297]
[1731844989465,3.6097,234.63,234.43,14.9297]
[1731844989656,3.6097,234.63,234.44,0.25098]
[1731844989961,3.5097,234.63,234.43,14.9297]
[1731844990168,0.1,234.61,234.43,14.9297]
[1731844990335,0.2,234.59,234.43,10.6641]
[1731844990757,0.1,234.56,234.43,10.6641]
[1731844991143,3.41,234.6,234.43,10.6641]
[1731844991359,3.41,234.6,234.44,0.25098]
[1731844991741,3.51,234.6,234.43,10.6641]
[1731844991946,0.2,234.56,234.43,10.6641]
[1731844992251,0.1,234.54,234.33,21.3373]
[1731844992448,3.5109,234.54,234.36,10.6669]
[1731844992648,0.1,234.53,234.36,10.6669]
[1731844992858,3.5109,234.54,234.36,10.6669]
[1731844993065,0.1,234.53,234.36,10.6669]
[1731844993366,3.4112,234.52,234.36,10.6669]
[1731844994259,0.1,234.51,234.36,10.6669]
[1731844994465,3.4115,234.5,234.36,10.6669]
[1731844994654,0.1,234.55,234.36,10.6669]
[1731844994655,0.1,234.54,234.36,10.6669]
[1731844994854,3.4107,234.55,234.37,0.12549]
[1731844995047,3.4107,234.55,234.36,10.6669]
[1731844995247,0.1,234.51,234.36,10.6669]
[1731844995456,0.1,234.48,234.36,10.6669]
[1731844996008,0.2,234.43,234.29,10.6703]
[1731844996272,3.5139,234.33,234.23,4.2692]
[1731844996564,3.5139,234.33,234.22,10.6737]
[1731844996565,3.5139,234.33,234.21,9.16218537]
[1731844996865,3.4128,234.41,234.18,36.2967]
[1731844997867,0.1,234.47,234.21,24.127864]
[1731844998067,0.1,234.49,234.23,0.1]
[1731844998360,0.1,234.47,234.23,0.1]
[1731844998560,0.1,234.47,234.22,0.25098]
[1731844999068,3.412,234.46,234.24,24.027864]
[1731844999362,0.1,234.59,234.32,0.1]
[1731844999550,3.4103,234.58,234.32,0.1]
[1731844999754,12.6153,234.6,234.37,0.1]
[1731844999952,3.5101,234.6,234.37,0.1]
[1731845000170,3.5101,234.6,234.36,0.35098]
[1731845000469,3.4101,234.6,234.37,0.1]
[1731845000656,0.1,234.73,234.46,32.411064]
[1731845000847,0.1,234.73,234.47,6.44935356]
[1731845001168,3.4083,234.72,234.48,24.127864]
[1731845001371,9.1052,234.78,234.52,0.1]
[1731845001372,3.4075,234.77,234.52,0.1]
[1731845001666,3.4075,234.77,234.52,6.54935356]
[1731845001877,3.4075,234.77,234.54,0.12549]
[1731845002043,0.1,234.8,234.54,0.12549]
[1731845002044,3.4072,234.8,234.54,0.35098]
[1731845002247,3.4072,234.8,234.54,30.67721756]
[1731845002468,3.4072,234.8,234.56,24.027864]
[1731845002666,0.4652843,234.81,234.57,0.1]
[1731845002848,0.4652843,234.81,234.58,0.25098]
[1731845003054,0.4652843,234.81,234.61,0.12549]
[1731845003550,0.4652843,234.81,234.62,8.2832]
[1731845003860,0.4652843,234.81,234.63,24.027864]
[1731845004254,3.4071,234.8,234.63,0.12549]
[1731845004451,0.4652843,234.81,234.63,24.027864]
[1731845005078,0.4652843,234.81,234.64,14.9164]
[1731845005275,0.4652843,234.81,234.65,24.027864]
[1731845005476,3.4071,234.8,234.65,0.12549]
[1731845005767,3.4071,234.8,234.64,14.9164]
[1731845006275,3.4071,234.8,234.65,0.12549]
[1731845006458,0.4652843,234.81,234.65,0.12549]
[1731845006459,0.4652843,234.81,234.65,24.027864]
[1731845007280,0.4652843,234.81,234.67,24.027864]
[1731845008574,0.4652843,234.81,234.7,0.35098]
[1731845009176,0.4652843,234.81,234.72,0.1]
[1731845009473,0.4652843,234.81,234.72,0.35098]
[1731845009852,0.4652843,234.81,234.71,60.091584]
[1731845009853,0.4652843,234.81,234.74,24.027864]
[1731845010568,0.4652843,234.81,234.74,24.127864]
[1731845011160,0.4652843,234.81,234.76,24.127864]
[1731845011366,0.4652843,234.81,234.76,24.027864]
[1731845011661,9.1052,235.01,234.76,24.027864]
[1731845011662,3.4042,235.01,234.78,24.027864]
[1731845012373,3.4038,235.03,234.79,0.1]
[1731845012577,3.8687843,235.05,234.83,0.1]
[1731845012788,0.4652843,235.05,234.84,0.12549]
[1731845012988,0.4652843,235.05,234.84,24.127864]
[1731845013292,0.4652843,235.05,234.86,24.027864]
[1731845014160,0.1,235.0,234.85,14.903]
[1731845014362,0.1,234.99,234.85,10.645]
[1731845014564,0.1,234.96,234.79,10.6477]
[1731845014762,0.1,234.98,234.79,10.6477]
[1731845015086,3.4046,234.97,234.79,10.6477]
[1731845015274,3.5046,234.97,234.79,10.6477]
[1731845015594,3.4046,234.97,234.79,10.6477]
[1731845016960,0.1,234.94,234.79,10.6477]